Cogmind - Beta 14 @@@ ROGUE MODE // 2025.03.28 @ 15:00:12 Player: Dosh Result: Destroyed 0b10! Performance ------------- Evolutions (9) 4500 Regions Visited (28) 5600 Robots Destroyed (602) 3010 Value Destroyed (29350) 29350 Prototype IDs (73) 1460 Alien Tech Used (5) 1000 Bonus (32325) 32325 TOTAL SCORE: 77245 Bonus ------- Triggered High Security 500 High Alert Combat Kills 7384 Follower Combat Kills 2837 Network Hubs Disabled 400 Registered with UFD 300 Met Zhirov 300 Met Warlord at Base 500 MAIN.C Attacked Warlord 500 Warlord Defense Kills 2032 Built Enhanced Grunts 300 Met R17 at Cetus 500 Used Core Reset Matrix 3000 Hacked Protovariant 500 Met R17 at Research 2000 Scanned by Researcher 500 Acquired SGEMP 2000 Met Sigix 2000 Escaped with Sigix 5000 Win 3000 Friendly Fire -1228 Cogmind --------- Core Integrity 1280/1600 Matter 136/300 Energy 100/100 System Corruption 11% Temperature Cool (2) Movement Flying (45) Location Tau Ceti IV Orbit Parts ------- > --- POWER (2) -------- (None) > --- PROPULSION (8) --- Impulse Thruster Array > --- UTILITY (11) ----- Experimental Targeting Computer Improved Hacking Suite Improved Hacking Suite Advanced Hacking Suite Advanced Hacking Suite Improved System Shield > --- WEAPON (4) ------- (None) > --- INVENTORY (5) ---- Tactical Quantum Warhead Sigix Broadsword Sigix Containment Pod Peak State ------------ > --- POWER ------------ Light Quantum Reactor Light Quantum Reactor > --- PROPULSION ------- Myomer Leg Myomer Leg Myomer Leg Centrium Leg Centrium Leg High-density Centrium Leg > --- UTILITY ---------- Experimental Cooling System Experimental Cooling System Huge Storage Unit Experimental Targeting Computer Quantum Capacitor SHELL Armor Improved Force Field Experimental System Shield > --- WEAPON ----------- KE Penetrator Multirail Hypervelocity Multirail Powered Hammer > --- INVENTORY -------- Light Quantum Reactor Light Quantum Reactor Advanced Heavy Siege Treads Myomer Leg Myomer Leg Myomer Leg Myomer Leg Centrium Wheel Advanced Cryofiber Web Advanced Energy Well Advanced Signal Interpreter Precision Energy Filter Experimental EM Disruption Field Improved Force Field Compact HERF Cannon Nova Cannon Enhanced Nova Cannon Cooled Nova Cannon Null Cannon Heavy Shock Bomb Launcher SGEMP Prototype [Rating: 204] Favorites ----------- Power Quantum Reactor Engine Heavy Ion Engine Power Core Light Nuclear Core Reactor Quantum Reactor Propulsion Centrium Heavy Treads Treads Centrium Heavy Treads Leg High-density Centrium Leg Wheel Overtuned Huge Scrapsphere Hover Unit Improved Antigrav System Flight Unit Impulse Thruster Array Utility Huge Storage Unit Device Experimental Heat Sink Storage Huge Storage Unit Processor Makeshift Salvage Targeting Computer Hackware Hacking Suite Protection Medium Regenerative Plating Weapon Advanced KE Penetrator Energy Gun EM Pulse Gun Energy Cannon Neutron Cannon Ballistic Gun Advanced KE Penetrator Ballistic Cannon Magnetic Acceleration Cannon Launcher Improved Proton Missile Launcher Special Weapon CPS Tube Impact Weapon Hammer Slashing Weapon Sigix Broadsword Special Melee Weapon Datajack Build | -11 -10 -10 -9 -9 -9 -9 -6 -6 -6 -6 -6 -5 -5 -5 -5 -4 -4 -4 -4 -4 -4 -4 -3 -3 -3 -2 -2 -1 ------- Run | Yrd Mat Min Mat Sto Rec Scr Fac Ext Cet Arc Hub Fac Upp Upp War Pro Fac Was Fac Upp Upp Zhi Pro Res Tes Res Qua Acc Slots Evolved 18 | . . . 2 . . . 6 . . . . 2 . . . . 2 . . . . . . 2 . 2 . 2 Power 1 | . . . . . . . 1 . . . . . . . . . . . . . . . . . . . . . Propulsion 6 | . . . 1 . . . 1 . . . . . . . . . . . . . . . . . . 2 . 2 Utility 9 | . . . 1 . . . 3 . . . . 1 . . . . 2 . . . . . . 2 . . . . Weapon 2 | . . . . . . . 1 . . . . 1 . . . . . . . . . . . . . . . . Parts Attached 643 | 6 19 3 37 29 1 7 31 42 21 5 13 18 5 3 23 17 33 7 53 4 2 5 21 33 75 85 22 23 Power 71 | 1 2 . 3 . . 1 3 8 3 . 2 . . . 2 2 3 1 2 . . . 2 6 8 18 2 2 Engine 12 | 1 . . 2 . . 1 3 4 . . . . . . . . . . . . . . . 1 . . . . Core 7 | . 2 . 1 . . . . 4 . . . . . . . . . . . . . . . . . . . . Reactor 52 | . . . . . . . . . 3 . 2 . . . 2 2 3 1 2 . . . 2 5 8 18 2 2 Propulsion 119 | 2 4 . 17 12 . 1 3 6 3 . . . . . . 1 3 1 2 . . . 3 6 15 27 7 6 Treads 68 | 2 . . 15 12 . 1 3 4 3 . . . . . . 1 3 1 1 . . . 1 2 6 7 3 3 Leg 29 | . 2 . . . . . . . . . . . . . . . . . . . . . . . 7 20 . . Wheel 16 | . 2 . 2 . . . . 2 . . . . . . . . . . 1 . . . 2 4 2 . . 1 Hover 5 | . . . . . . . . . . . . . . . . . . . . . . . . . . . 4 1 Flight 1 | . . . . . . . . . . . . . . . . . . . . . . . . . . . . 1 Utility 223 | 1 4 2 9 4 . 3 13 10 10 5 7 10 4 1 7 6 21 4 24 1 . 1 4 15 28 15 3 11 Device 126 | . 1 1 1 2 . 1 10 6 2 4 3 7 3 . 5 2 10 3 14 . . 1 2 10 19 13 2 4 Storage 9 | 1 1 . . 1 . 2 . . 1 . . . . . . . . . . . . . . 1 2 . . . Processor 12 | . . . . . . . . . 1 . 1 . . . 1 . 2 . . 1 . . . 1 3 1 . 1 Hackware 15 | . . . . . . . . 1 . 1 1 . . . . . 2 . 1 . . . . 1 1 . 1 6 Protection 61 | . 2 1 8 1 . . 3 3 6 . 2 3 1 1 1 4 7 1 9 . . . 2 2 3 1 . . Artifact . | . . . . . . . . . . . . . . . . . . . . . . . . . . . . . Weapon 230 | 2 9 1 8 13 1 2 12 18 5 . 4 8 1 2 14 8 6 1 25 3 2 4 12 6 24 25 10 4 Energy Gun 1 | 1 . . . . . . . . . . . . . . . . . . . . . . . . . . . . Energy Cannon 46 | . . . . . . . . 2 . . . 1 . . 3 3 . . 14 2 1 4 3 1 5 5 2 . Ballistic Gun 145 | 1 6 1 7 7 1 2 6 13 4 . 4 6 1 2 10 5 5 1 10 . . . 7 5 19 18 2 2 Ballistic Cannon 1 | . . . . . . . 1 . . . . . . . . . . . . . . . . . . . . . Launcher 13 | . 1 . . 1 . . 1 1 . . . 1 . . 1 . 1 . . . 1 . 2 . . 1 1 1 Special Weapon 7 | . . . . . . . 2 2 1 . . . . . . . . . 1 1 . . . . . . . . Impact Weapon 7 | . 2 . . 2 . . 2 . . . . . . . . . . . . . . . . . . 1 . . Slashing Weapon 6 | . . . . . . . . . . . . . . . . . . . . . . . . . . . 5 1 Piercing Weapon . | . . . . . . . . . . . . . . . . . . . . . . . . . . . . . Special Melee Weapon 4 | . . . 1 3 . . . . . . . . . . . . . . . . . . . . . . . . Unidentified Prototypes 46 | . . . 1 1 . . . . 6 . 3 2 . . 2 1 . . 1 . . 1 . 5 18 2 3 . Corrupted Parts 2 | . . 1 . . . . . . . . . . . . . 1 . . . . . . . . . . . . System Corruption 9 | . . 4 . . . . . . . . . . . . . 5 . . . . . . . . . . . . Parts Lost 145 | . 3 . 4 1 1 . 2 15 5 . 1 . . 1 1 8 9 . 10 1 . . 16 . 9 38 7 13 Power 27 | . . . 1 . . . . 5 . . . . . . . 2 1 . 1 . . . 4 . 2 10 1 . Propulsion 24 | . 1 . 2 . . . . 3 1 . . . . . . 1 2 . 1 . . . 2 . . 4 2 5 Utility 55 | . 1 . 1 1 1 . 2 2 3 . . . . 1 . 2 6 . 8 . . . 3 . 3 12 4 5 Weapon 39 | . 1 . . . . . . 5 1 . 1 . . . 1 3 . . . 1 . . 7 . 4 12 . 3 Highest Loss Streak 13 | . 3 . 2 1 1 . 1 12 4 . 1 . . 1 1 5 2 . 4 1 . . 13 . 4 5 3 6 To Critical Strikes 4 | . . . . . . . . 2 1 . . . . . . . . . 1 . . . . . . . . . Average Slot Usage (%) 85 | . 97 100 96 99 88 86 91 84 85 86 85 86 88 88 87 82 84 92 83 84 84 63 78 84 86 75 41 44 Engine 3 | . 6 . 7 11 11 10 12 3 1 . . . . . . . . . . . . . . . . . . . Core 1 | . 7 14 3 . . . . 4 1 . . . . . . . . . . . . . . 2 . . . . Reactor 5 | . . . . . . . . . 8 13 13 11 11 11 11 7 6 10 9 10 10 10 8 4 8 6 2 1 Treads 15 | . 21 . 28 33 33 33 26 13 11 13 13 11 11 11 11 10 10 13 8 5 5 5 4 3 10 2 12 16 Leg 1 | . 3 . . . . . . . . . . . . . . . . . . . . . . . 3 20 . . Wheel 2 | . 2 28 3 . . . . 12 3 . . . . . . . . . 1 5 5 5 4 7 . . . 2 Device 12 | . 2 . 1 10 11 10 19 12 13 10 12 7 9 8 15 14 16 24 19 17 15 14 16 22 11 11 6 3 Storage 6 | . 14 14 11 11 11 10 6 6 6 6 6 5 5 5 5 5 5 5 5 5 5 5 5 4 4 3 . . Processor 5 | . . . . . . . . . 5 6 7 11 11 11 13 10 8 5 5 8 10 10 10 9 12 7 4 4 Hackware 2 | . . . . . . . . 5 . . 5 5 1 . . . 2 . . 5 5 5 5 6 8 4 3 7 Protection 7 | . 10 14 18 11 . . 5 4 10 15 6 7 10 13 3 7 12 10 9 5 5 5 2 1 3 3 . . Energy Cannon 2 | . . . . . . . . 1 . . . . . . 1 . 4 . 9 20 21 . 17 1 . . 1 . Ballistic Gun 17 | . 21 28 21 20 17 21 18 18 19 20 20 22 23 23 21 22 15 21 10 . . . 2 17 18 10 1 5 Peak Build Rating 204 | 6 14 16 17 21 20 24 60 65 117 117 125 143 140 141 149 142 156 152 152 127 124 125 129 149 192 204 154 156 Average Rating 96 | 4 9 12 16 18 18 19 51 57 98 112 112 137 137 138 141 133 150 150 136 124 123 97 115 132 162 170 101 105 On Entrance 92 | . 6 11 13 17 20 19 24 57 62 117 110 122 143 137 141 142 142 149 152 127 123 124 125 92 149 185 80 85 Naked Turns . | . . . . . . . . . . . . . . . . . . . . . . . . . . . . . Heaviest Build 196 | 14 33 34 48 63 62 95 130 145 156 155 149 159 162 164 170 183 195 164 177 158 156 156 156 128 196 192 68 58 Greatest Support 280 | 40 40 20 60 66 66 66 102 102 160 160 160 160 160 160 160 160 160 150 150 20 20 20 20 140 140 220 210 280 Greatest Overweight (x) 18 | . 3 1 3 1 . 1 1 18 15 . . . 1 1 1 2 1 1 8 7 7 7 7 7 9 5 3 3 Average Overweight (x) 1 | . . 1 . . . . 1 6 2 . . . . . . . . 1 3 7 7 5 6 2 1 . . 1 Largest Inventory Capacity 25 | 8 15 15 15 20 20 25 25 25 25 25 25 25 25 25 25 25 25 25 25 25 25 25 25 25 25 25 5 5 Average Capacity 21 | 7 14 15 15 17 20 20 25 25 25 25 25 25 25 25 25 25 25 25 25 25 25 25 25 20 24 22 5 5 Most Carried 25 | 1 15 15 15 20 19 25 25 25 25 25 25 25 25 25 25 25 25 25 25 25 25 25 25 20 25 25 5 5 Average Carried 20 | . 9 14 14 16 19 19 24 22 23 24 23 24 23 24 24 22 20 23 24 24 24 24 21 18 23 20 4 3 Final Capacity 25 | 8 15 15 15 20 20 25 25 25 25 25 25 25 25 25 25 25 25 25 25 25 25 25 25 20 25 5 5 5 Final Carried 25 | 1 13 15 15 19 19 25 25 24 25 24 25 25 24 24 25 17 21 25 25 24 25 25 11 20 24 5 5 5 Class Distribution -------------------- 36% | Scavenger-Gunner 21% | Scavenger-Tank 10% | Scavenger-Mutant 10% | Commander-Mutant 9% | Mutant 4% | Tank Dominant Class ---------------- Mutant | -10/Materials Mutant | -10/Mines Scavenger-Mutant | -9/Materials Mutant | -9/Storage Commander-Mutant | -9/Recycling Commander-Mutant | -9/Scraptown Tank | -6/Factory Scavenger-Tank | -6/Extension Scavenger-Tank | -6/Cetus Scavenger-Tank | -6/Archives Scavenger-Gunner | -6/Hub_04(d) Scavenger-Tank | -5/Factory Scavenger-Gunner | -5/Upper Caves Scavenger-Gunner | -5/Upper Caves Scavenger-Gunner | -5/Warlord Scavenger-Gunner | -4/Proximity Caves Scavenger-Tank | -4/Factory Scavenger-Tank | -4/Waste Scavenger-Tank | -4/Factory Scavenger-Gunner | -4/Upper Caves Scavenger-Gunner | -4/Upper Caves Scavenger-Mutant | -4/Zhirov Scavenger-Gunner | -3/Proximity Caves Scavenger-Gunner | -3/Research Scavenger-Gunner | -3/Testing Scavenger-Gunner | -2/Research Alien-Mutant | -2/Quarantine Alien-Mutant | -1/Access Resources | -11 -10 -10 -9 -9 -9 -9 -6 -6 -6 -6 -6 -5 -5 -5 -5 -4 -4 -4 -4 -4 -4 -4 -3 -3 -3 -2 -2 -1 ----------- Run | Yrd Mat Min Mat Sto Rec Scr Fac Ext Cet Arc Hub Fac Upp Upp War Pro Fac Was Fac Upp Upp Zhi Pro Res Tes Res Qua Acc Matter Collected 21935 | 200 664 112 1222 890 43 . 1279 1331 434 408 1096 1085 218 222 481 802 1575 646 960 269 116 . 628 403 3321 2943 201 386 Remotely 1644 | . . . . . . . . . . . . . . . . . 475 626 242 . . . . . 301 . . . Salvage Created 37571 | . 501 237 1909 1450 303 . 1355 906 454 474 1500 2486 565 561 1178 1671 3156 1668 3045 270 . . 1079 351 4238 7258 567 389 Parts 1951 | . 36 10 110 96 14 . 69 55 35 43 107 132 25 24 51 92 163 28 145 10 . . 29 17 266 340 21 33 Haulers Intercepted 17 | . 1 . 3 6 . . 1 . . . . 1 . . . . 1 . . . . . . 2 . 2 . . Recyclers Shooed 15 | . . . 2 . . . 1 3 . . . . . . . . 1 . 6 . . . . 1 . 1 . . Parts Field Recycled . | . . . . . . . . . . . . . . . . . . . . . . . . . . . . . Retrieved Matter . | . . . . . . . . . . . . . . . . . . . . . . . . . . . . . Parts Self-Destructed 177 | . . . . . . . . . . . . . 31 24 . 93 . . . 9 . . 20 . . . . . Prevented 9 | . . . . . . . . . . . . . . . . . . . . . . . 9 . . . . . Kills | -11 -10 -10 -9 -9 -9 -9 -6 -6 -6 -6 -6 -5 -5 -5 -5 -4 -4 -4 -4 -4 -4 -4 -3 -3 -3 -2 -2 -1 ------- Run | Yrd Mat Min Mat Sto Rec Scr Fac Ext Cet Arc Hub Fac Upp Upp War Pro Fac Was Fac Upp Upp Zhi Pro Res Tes Res Qua Acc Combat Hostiles Destroyed 475 | . 13 8 31 25 1 . 18 15 5 1 20 33 9 11 17 20 40 6 39 6 . . 18 2 44 77 7 9 Melee 7 | . . . . . . . . . . . . . . . . . . . . . . . . . . . 6 1 Guns 370 | . 13 8 31 22 1 . 15 12 5 1 20 32 9 11 5 19 34 6 14 . . . 4 2 44 58 . 4 Cannons 59 | . . . . . . . . 1 . . . . . . . 1 3 . 23 6 . . 6 . . 18 1 . AOE 29 | . . . . 3 . . 3 2 . . . 1 . . 9 . 1 . 2 . . . 4 . . . . 4 Classes Destroyed 27 | . 6 . 3 1 . . 3 . . . 1 3 . . 2 . 1 1 1 . . . . . 4 1 . . Worker 40 | . 1 . 1 1 . . 3 . . . 5 4 . . . . 5 . . . . . . 1 9 10 . . Builder 28 | . . . . 2 1 . . . . . 2 . . . . . 4 . 7 . . . . 1 7 4 . . Tunneler 2 | . . . . . . . . . . . . . . . . . 1 . . . . . . . . 1 . . Hauler 17 | . 1 . 3 6 . . 1 . . . . 1 . . . . 1 . . . . . . 2 . 2 . . Recycler 13 | . . . 3 . 3 . . 1 . . . . . . . . . . 4 . . . . . 1 1 . . Mechanic 6 | . . . . . . . . . . . . 1 . . . . 1 . 2 . . . . . . 2 . . Operator 16 | . . . 2 1 . . . 2 . 7 . 1 . . . . 2 . . . . . . . . . . 1 Watcher 18 | . 2 . 3 2 . . 2 . 2 . 1 2 . . . . 1 . 1 . . . . . 1 1 . . Swarmer 63 | . 6 4 3 4 . . . 1 . . 2 4 3 6 2 2 9 . . 2 . . 7 . . 4 . 4 Saboteur 2 | . . . . . . . . . . . . . . . . . . . 1 . . . . . . 1 . . Grunt 198 | . 6 4 19 10 . . 11 3 . . 8 15 2 4 7 11 16 . 16 4 . . 5 . 14 39 4 . Brawler 15 | . . . . . . . . . . . . 2 1 . . 2 2 . . . . . 1 . 2 5 . . Duelist 9 | . . . . . . . . . . . . 2 . . 1 . 1 . . . . . 1 . 1 3 . . Protector 3 | . . . . . . . . . . . . . . . . . . . . . . . . . 1 2 . . Researcher 2 | . . . . . . . . . . . . . . . . . . . . . . . . . 2 . . . Sentry 49 | . . . 9 11 1 . 2 3 . 1 2 3 1 1 . 2 1 . 4 . . . 2 . 3 3 . . Demolisher 3 | . . . . . . . . . . . . . . . 3 . . . . . . . . . . . . . Hunter 49 | . . . . . . . 1 8 . . . 5 2 . 2 2 6 . 9 . . . . 1 6 6 1 . Programmer 51 | . . . . . . . 4 . . . 4 2 . . . . 4 . 7 . . . 2 1 10 10 2 5 Heavy 1 | . . . . . . . . . . . . . . . . . . . . . . . . . . 1 . . Q-Series 5 | . . . . . . . . . . . . . . . . . . . . . . . . . 3 2 . . Behemoth 5 | . . . . . . . . . . . 1 . . . 1 1 1 . . . . . . . . 1 . . Compactor 6 | . . . . . . . . . . . . . . . . . . 6 . . . . . . . . . . Cetus Guard 5 | . . . . . . . . . 5 . . . . . . . . . . . . . . . . . . . Enhanced Grunt 1 | . . . . . . . . . . 1 . . . . . . . . . . . . . . . . . . Lightning 3 | . . . . . . . . . . . 3 . . . . . . . . . . . . . . . . . Striker 3 | . . . . . . . . . . . . . . . 1 . . . . . . . . . 2 . . . Alpha 7 1 | . . . . . . . . . . . . . . . . . . . . . . . . . 1 . . . Protovariant G 1 | . . . . . . . . . . . . . . . . . . . . . . . . . 1 . . . Subdweller 1 | . 1 . . . . . . . . . . . . . . . . . . . . . . . . . . . Scrapoid 4 | . . . . . . . 2 . . . . . . . . . . . 2 . . . . . . . . . Butcher 1 | . . . . . . . . . . . . . . . 1 . . . . . . . . . . . . . Best Kill Streak 17 | . 4 3 6 10 1 . 7 5 5 3 5 6 5 5 12 6 7 2 17 6 . . 5 2 10 12 2 4 Combat Bots Only 12 | . 3 3 5 8 1 . 4 4 4 1 5 6 5 5 12 6 5 2 9 6 . . 5 2 8 11 2 4 Max Kills in Single Turn 6 | . 2 1 1 4 1 . 2 1 2 1 2 3 2 2 4 2 2 1 6 1 . . 2 1 2 4 1 4 Gunslinging 1 | . 1 . . 1 . . . . . . 1 1 . 1 . 1 1 . . . . . 1 . 1 1 . . Exploded 4 | . . . . 3 . . 2 1 . . . 1 . . 4 . 1 . 1 . . . 1 . . . . 4 Melee 1 | . . . . . . . . . . . . . . . . . . . . . . . . . . . 1 1 Uniques/NPCs Destroyed . | . . . . . . . . . . . . . . . . . . . . . . . . . . . . . Combat | -11 -10 -10 -9 -9 -9 -9 -6 -6 -6 -6 -6 -5 -5 -5 -5 -4 -4 -4 -4 -4 -4 -4 -3 -3 -3 -2 -2 -1 -------- Run | Yrd Mat Min Mat Sto Rec Scr Fac Ext Cet Arc Hub Fac Upp Upp War Pro Fac Was Fac Upp Upp Zhi Pro Res Tes Res Qua Acc Hostile Shots Fired 4107 | . 75 33 142 120 6 . 176 313 59 5 249 105 22 43 29 133 209 . 368 50 . . 201 4 458 917 227 163 Missed 1040 | . 17 8 44 27 2 . 59 70 12 1 73 25 5 9 8 19 39 . 91 8 . . 58 3 95 248 59 60 Damage Taken 55708 | . 704 326 1252 863 60 . 1433 2544 1218 94 2701 1490 351 559 675 2285 2943 . 4732 814 9 . 3198 26 6737 14100 3748 2846 Core 4366 | . 102 94 117 131 . . 143 251 115 . 182 107 20 101 39 79 285 . 219 44 . . 435 . 222 801 559 320 Absorbed by Shields 5199 | . . . 17 327 23 . 482 304 37 . . . . . 197 498 574 . . . . . . 8 1577 1155 . . Reduced by Siege Mode 1941 | . . . . . . . . . 44 . 261 32 7 8 12 203 146 . 348 47 . . 234 . 311 288 . . Redirected to Shielding 51 | . 51 . . . . . . . . . . . . . . . . . . . . . . . . . . . Ignored by Resistances 1996 | . . . . . . . . 613 . . . . . . . . 81 . 170 . . . 213 . 197 722 . . Regen/Repaired (Parts) 14238 | . 31 . 177 26 . . 376 40 23 . 522 1054 108 61 846 318 992 89 1051 2 10 . 20 . 2485 4680 805 522 Core Remaining (%) 46 | 100 . 21 . . . 38 . . . . 18 . . . . 65 . . . . . . 14 . 77 . 5 80 Volleys Fired 1510 | . 65 20 139 98 4 . 85 82 22 31 79 56 12 12 23 46 93 35 81 13 . . 44 17 149 271 16 17 Largest 4 | . 2 2 2 2 2 . 3 3 3 3 3 4 4 4 4 4 4 4 4 4 . . 4 4 4 4 1 4 Hottest 370 | . 60 46 46 46 46 . 99 120 91 84 105 140 133 133 140 168 270 140 370 360 . . 360 138 155 161 50 146 Shots Fired 4212 | . 127 40 278 195 8 . 239 215 60 94 238 220 49 48 66 167 316 137 298 48 . . 127 37 563 570 16 56 Gun 3717 | . 126 40 278 194 8 . 231 202 57 94 238 219 49 48 57 162 294 137 144 . . . 42 27 559 453 3 55 Cannon 456 | . . . . . . . 2 8 . . . 1 . . 5 5 18 . 152 47 . . 75 10 4 116 13 . Launcher 28 | . 1 . . 1 . . 2 4 . . . . . . 4 . 4 . . . . . 10 . . 1 . 1 Special 11 | . . . . . . . 4 1 3 . . . . . . . . . 2 1 . . . . . . . . Kinetic 3709 | . 116 40 278 194 8 . 233 202 57 94 238 219 49 48 57 162 294 137 144 . . . 42 27 559 453 3 55 Thermal 419 | . . . . . . . . 8 . . . 1 . . 4 . . . 141 47 . . 75 10 4 116 13 . Explosive 9 | . 1 . . 1 . . 2 4 . . . . . . . . . . . . . . . . . . . 1 Electromagnetic 29 | . 10 . . . . . . . . . . . . . 4 . 4 . . . . . 10 . . 1 . . Entropic 35 | . . . . . . . . . . . . . . . 1 5 18 . 11 . . . . . . . . . Robot Hit Streak 60 | . 11 17 14 16 4 . 15 15 25 21 39 28 12 20 16 47 32 33 13 34 . . 16 9 57 60 6 7 Robot Miss Streak 10 | . 5 3 4 6 2 . 4 7 2 4 3 6 2 3 1 2 5 2 4 2 . . 3 3 7 10 1 4 Penetration Max 2 | . . . . . . . . . 1 1 1 1 1 1 1 1 1 . 1 . . . 1 . 2 2 . 1 Secondary Targets 70 | . 2 . 4 3 . . 3 6 3 . 4 5 2 2 1 4 3 . 1 . . . 1 . 11 15 . . Max Gunslinging Chain 1 | . 1 . 1 1 . . 1 1 1 . 1 1 1 1 1 1 1 . 1 . . . 1 . 1 1 . . Capacitor 118 | . . . . . . . . . . . . . . . . . . . . . . . . 10 . 108 . . Shots Hit Robots 2921 | . 84 27 180 134 7 . 159 110 52 56 179 141 30 34 51 134 203 110 180 27 . . 68 15 415 458 30 37 Core Hits 1345 | . 31 13 71 59 5 . 70 57 22 21 69 73 17 20 41 53 101 14 92 12 . . 43 9 165 261 9 17 Critical Kills 119 | . . . . 3 . . . . 1 6 6 11 3 3 1 8 17 5 8 . . . . 1 13 32 . 1 Critical Parts Destroyed 199 | . 1 . . . . . 1 5 . 2 14 13 4 4 3 6 21 4 14 . . . 5 2 36 63 . 1 Critical Strikes 367 | . 1 . . 3 . . 1 5 3 8 20 25 8 7 6 17 48 23 22 . . . 5 3 58 100 2 2 Destroy 356 | . 1 . . 3 . . 1 5 3 8 20 25 8 7 6 16 40 23 22 . . . 5 3 58 100 . 2 Sever 2 | . . . . . . . . . . . . . . . . . . . . . . . . . . . 2 . Sunder 9 | . . . . . . . . . . . . . . . . 1 8 . . . . . . . . . . . Melee Attacks 83 | . 10 . . 7 2 . 5 . . . . . . . . . . . . . . . . . . . 48 11 Impact 24 | . 10 . . 7 2 . 5 . . . . . . . . . . . . . . . . . . . . . Slashing 59 | . . . . . . . . . . . . . . . . . . . . . . . . . . . 48 11 Piercing . | . . . . . . . . . . . . . . . . . . . . . . . . . . . . . Sneak Attacks 3 | . 1 . . . 1 . . . . . . . . . . . . . . . . . . . . . . 1 Combat Hostiles 1 | . . . . . 1 . . . . . . . . . . . . . . . . . . . . . . . Follow-up Attacks . | . . . . . . . . . . . . . . . . . . . . . . . . . . . . . Damage Inflicted 86482 | 4 976 393 2788 2326 211 . 2882 2383 1186 1217 4421 4570 857 890 3050 3790 7146 2969 7355 1176 18 . 3624 569 13288 14592 1663 2138 Guns 64541 | . 892 393 2787 2097 99 . 2473 1795 1186 1217 4221 4401 857 890 1482 3437 5370 2969 2644 . . . 743 285 13163 9839 68 1233 Cannons 13083 | . . . . . . . . 32 . . . . . . . 353 1086 . 3662 1047 . . 1788 278 . 4409 428 . Explosions 6745 | . . . . 176 . . 315 556 . . 187 169 . . 1568 . 662 . 1010 129 . . 1093 . . 273 . 607 Melee 1607 | . 69 . . . 76 . . . . . . . . . . . . . . . . . . . . . 1164 298 Ramming 506 | 4 15 . 1 53 36 . 94 . . . 13 . . . . . 28 . 39 . 18 . . 6 125 71 3 . Kinetic 64497 | . 848 393 2787 2097 99 . 2473 1795 1186 1217 4221 4401 857 890 1482 3437 5370 2969 2644 . . . 743 285 13163 9839 68 1233 Thermal 13708 | . . . . . . . . 32 . . . 169 . . 563 . 35 . 4417 1176 . . 2115 278 . 4495 428 . Explosive 1654 | . . . . 176 . . 315 556 . . . . . . . . . . . . . . . . . . . 607 Electromagnetic 2816 | . 44 . . . . . . . . . 187 . . . 1005 . 627 . . . . . 766 . . 187 . . Impact 145 | . 69 . . . 76 . . . . . . . . . . . . . . . . . . . . . . . Slashing 1462 | . . . . . . . . . . . . . . . . . . . . . . . . . . . 1164 298 Piercing . | . . . . . . . . . . . . . . . . . . . . . . . . . . . . . Entropic 1694 | . . . . . . . . . . . . . . . . 353 1086 . 255 . . . . . . . . . Highest Corruption 39 | . . 4 . . . . 3 5 5 5 10 3 3 . . 9 8 21 23 23 23 23 26 2 13 39 39 11 Average Corruption 11 | . . 4 . . . . 2 4 5 4 5 2 2 . . 6 7 14 21 23 23 23 24 2 8 11 4 7 Corruption Purged 12 | . . . . . . . 3 1 . 5 . . 3 . . . . . . . . . . . . . . . Corruption Blocked . | . . . . . . . . . . . . . . . . . . . . . . . . . . . . . Effects 639 | . . . . . . . 13 33 8 5 24 2 1 . . 38 24 30 87 45 36 11 65 8 129 60 6 14 Message Errors 141 | . . . . . . . 4 2 4 1 9 . . . . 10 5 6 11 11 10 3 13 4 29 15 1 3 Matter Fused 139 | . . . . . . . 1 12 1 1 4 . . . . 10 5 5 19 10 10 6 12 1 23 12 2 5 Heat Flow Errors 61 | . . . . . . . 1 6 2 . 4 . . . . 5 3 2 6 5 5 . 6 1 10 3 . 2 Energy Discharges 69 | . . . . . . . 1 5 1 2 1 . . . . 2 2 5 14 6 3 1 9 . 11 4 2 . Parts Rejected 18 | . . . . . . . . 1 . . . 1 . . . 1 1 1 6 . . . 1 . 5 1 . . Parts Fused 7 | . . . . . . . 2 1 . . . . . . . . . 1 . . . . 1 . 2 . . . Data Loss (minor) 71 | . . . . . . . 2 2 . . 3 1 . . . 6 . 2 9 4 4 . 9 1 16 11 . 1 Data Loss (major) 28 | . . . . . . . 1 2 . . 2 . . . . . 1 2 4 1 2 1 4 . 6 2 . . Misfires 21 | . . . . . . . . 1 . 1 1 . 1 . . 1 1 1 2 3 . . 1 1 5 2 . . Alerts 13 | . . . . . . . . . . . . . . . . . 1 1 3 1 2 . 3 . 1 . 1 . Misdirections 9 | . . . . . . . . . . . . . . . . . . . 4 . . . . . . 3 . 2 Weapon Failures 62 | . . . . . . . 1 1 . . . . . . . 3 5 4 9 4 . . 6 . 21 7 . 1 Overload Shots . | . . . . . . . . . . . . . . . . . . . . . . . . . . . . . Overflow Damage 866 | . 29 . . 4 . . 13 31 . . . . . . 14 33 26 . 326 . 10 . 70 22 . 101 110 77 Projectiles 499 | . . . . . . . . . . . . . . . . 33 26 . 295 . . . 28 22 . 95 . . Explosions 184 | . . . . 4 . . . 31 . . . . . . 14 . . . 31 . . . 42 . . 6 . 56 Melee 183 | . 29 . . . . . 13 . . . . . . . . . . . . . 10 . . . . . 110 21 Knockbacks 2 | . . . . . . . 2 . . . . . . . . . . . . . . . . . . . . . Impact 2 | . . . . . . . 2 . . . . . . . . . . . . . . . . . . . . . Kinetic . | . . . . . . . . . . . . . . . . . . . . . . . . . . . . . Secondary . | . . . . . . . . . . . . . . . . . . . . . . . . . . . . . Self-Inflicted Damage 511 | . 8 . . . . . . 69 . . 80 . . . . . 81 . 70 . 9 . 90 . . 103 1 . Shots 14 | . 1 . . . . . . 2 . . 1 . . . . . 4 . 2 . . . 2 . . 2 . . Rammed 44 | 1 6 . . 8 1 . 9 . . . 1 . . . . . 3 . 3 . 1 . . 1 8 . 2 . Targets Rammed 58 | 1 6 . 1 8 3 . 9 . . . 1 . . . . . 3 . 3 . 1 . . 1 12 7 2 . Kicked 11 | . . . . . . . . . . . . . . . . . . . . . . . . . 4 7 . . Crushed 3 | . . . 1 . 2 . . . . . . . . . . . . . . . . . . . . . . . Highest Temperature 609 | . 21 96 63 33 2 . 242 385 226 12 252 449 99 48 102 266 609 36 302 63 . . . 78 341 227 8 214 Average Temperature 62 | . 6 53 16 8 1 . 50 111 125 3 47 71 38 20 43 71 112 31 140 25 . . . 46 77 78 8 107 Received Heat Transfer 8317 | . 318 126 568 342 19 . 369 207 117 9 585 225 36 75 21 441 587 . 652 210 . . 633 9 553 1684 486 45 Effects 7 | . . . . . . . . 3 . . . 1 . . . . . . . . . . . . 3 . . . Energy Bleed 3 | . . . . . . . . 1 . . . . . . . . . . . . . . . . 2 . . . Matter Decay 2 | . . . . . . . . 2 . . . . . . . . . . . . . . . . . . . . Short Circuit 1 | . . . . . . . . . . . . 1 . . . . . . . . . . . . . . . . Damage (minor) 1 | . . . . . . . . . . . . . . . . . . . . . . . . . 1 . . . Siege Activations 65 | . . . . . . . . . 1 1 7 3 3 2 2 6 12 5 12 1 . . 3 . 6 1 . . Total Turns 2171 | . . . . . . . . . 34 61 488 95 49 20 54 124 270 365 304 45 . . 75 . 131 56 . . Longest Duration 312 | . . . . . . . . . 34 61 312 50 23 14 31 62 93 188 86 45 . . 44 . 82 56 . . Robots Corrupted 12 | . 1 . . . 1 . 1 . . . . . . . 3 . 2 . . . . . 4 . . . . . Combat Hostiles 9 | . . . . . . . . . . . . . . . 3 . 2 . . . . . 4 . . . . . Parts Fried 24 | . . . . . 2 . 1 1 . . . . . . 7 . 8 . . . . . 5 . . . . . Impact Corruptions 4 | . 1 . . . 1 . 1 . . . . . . . . . . . . . 1 . . . . . . . Robots Melted 1 | . . . . . . . . . . . . . . . . . . . . . . . . . . 1 . . Combat Hostiles 1 | . . . . . . . . . . . . . . . . . . . . . . . . . . 1 . . Parts Melted 11 | . . . . . . . . . . . . 1 . . 1 . . . 1 . . . 1 . . 7 . . Heat Transferred 6363 | . . . . . . . . 50 . . . 150 . . 750 . 50 . 750 100 . . 200 259 . 3684 370 . Parts Sabotaged 4 | . . . . . . . . . . . . . . . . 4 . . . . . . . . . . . . Parts Stolen . | . . . . . . . . . . . . . . . . . . . . . . . . . . . . . Parts Stripped . | . . . . . . . . . . . . . . . . . . . . . . . . . . . . . Power Chain Reactions 14 | . . . . . . . . . . . . . . . 3 . . . 3 2 . . 4 . . 2 . . Alert | -11 -10 -10 -9 -9 -9 -9 -6 -6 -6 -6 -6 -5 -5 -5 -5 -4 -4 -4 -4 -4 -4 -4 -3 -3 -3 -2 -2 -1 ------- Run | Yrd Mat Min Mat Sto Rec Scr Fac Ext Cet Arc Hub Fac Upp Upp War Pro Fac Was Fac Upp Upp Zhi Pro Res Tes Res Qua Acc Peak Influence 2291 | . 290 236 513 501 210 . 327 486 193 242 776 829 . . . . 962 348 1156 . . . . 127 860 2291 1525 1575 Initial 1282 | . . 1 13 117 113 . . 159 181 . . 349 . . . . 35 336 134 . . . . 43 . 463 1282 816 Average 412 | . 91 130 277 255 112 . 203 313 116 89 465 415 . . . . 410 265 658 . . . . 51 371 1242 1348 1221 Maximum Alert Level 5 | . 1 1 2 2 1 . 1 2 . 1 3 3 . . . . 3 1 4 . . . . . 3 5 4 4 Low Security (%) 37 | 100 95 81 24 38 96 . 44 25 100 72 14 21 . . . . 26 45 8 . . . . 100 22 . . . Level 1 25 | . 4 18 48 38 3 . 55 31 . 27 28 14 . . . . 30 54 23 . . . . . 28 . . . Level 2 18 | . . . 26 22 . . . 42 . . 31 54 . . . . 18 . 14 . . . . . 42 10 . . Level 3 10 | . . . . . . . . . . . 25 9 . . . . 23 . 38 . . . . . 6 39 . 37 Level 4 6 | . . . . . . . . . . . . . . . . . . . 14 . . . . . . 22 100 62 Level 5 . | . . . . . . . . . . . . . . . . . . . . . . . . . . 10 . . High Security 1 | . . . . . . . . . . . . . . . . . . . . . . . . . . 16 . . Max Security . | . . . . . . . . . . . . . . . . . . . . . . . . . . . . . Squads Dispatched 134 | . 3 . 3 4 . . 11 4 . . 15 10 . . . 1 7 . 12 . . . 1 7 14 26 6 10 Investigation 32 | . 3 . 2 3 . . 5 1 . . 3 3 . . . . 2 . 4 . . . . 4 . . . 2 Extermination 30 | . . . . . . . 4 . . . 5 2 . . . . 2 . 3 . . . . . 7 4 1 2 Reinforcement 35 | . . . 1 1 . . 2 3 . . 4 2 . . . . 2 . 3 . . . . 3 5 6 1 2 Assault 27 | . . . . . . . . . . . . . . . . 1 1 . 2 . . . 1 . 2 15 4 1 Garrison 10 | . . . . . . . . . . . 3 3 . . . . . . . . . . . . . 1 . 3 Intercept . | . . . . . . . . . . . . . . . . . . . . . . . . . . . . . Searches Triggered . | . . . . . . . . . . . . . . . . . . . . . . . . . . . . . Construction Impeded 8 | . . . . . . . . . . . 1 . . . . . 1 . 2 . . . . . 1 3 . . Haulers Reinforced 5 | . . . . . . . . . . . . 1 . . . . . . 1 . . . . 2 . . . 1 Active Scanning Responses . | . . . . . . . . . . . . . . . . . . . . . . . . . . . . . Cargo Convoy Interrupts . | . . . . . . . . . . . . . . . . . . . . . . . . . . . . . Stealth | -11 -10 -10 -9 -9 -9 -9 -6 -6 -6 -6 -6 -5 -5 -5 -5 -4 -4 -4 -4 -4 -4 -4 -3 -3 -3 -2 -2 -1 --------- Run | Yrd Mat Min Mat Sto Rec Scr Fac Ext Cet Arc Hub Fac Upp Upp War Pro Fac Was Fac Upp Upp Zhi Pro Res Tes Res Qua Acc Distress Signals 41 | . 3 . 4 2 . . . 3 2 . 2 1 . . 1 . 6 . 4 . . . . 4 2 3 1 3 Communications Jammed . | . . . . . . . . . . . . . . . . . . . . . . . . . . . . . Distress Signals . | . . . . . . . . . . . . . . . . . . . . . . . . . . . . . Times Spotted 834 | . 28 10 49 34 3 . 35 34 9 25 39 36 7 12 34 23 65 7 45 9 . . 25 15 70 151 40 29 Peak Tracking Total 17 | . 4 3 5 5 1 . 4 5 5 2 8 7 5 4 15 6 6 3 7 7 . . 6 4 8 16 17 7 Tactical Retreats 65 | . 3 1 5 . . . 4 8 . . 1 2 . 1 1 . 9 2 . 1 . . 2 1 4 13 2 5 Traps | -11 -10 -10 -9 -9 -9 -9 -6 -6 -6 -6 -6 -5 -5 -5 -5 -4 -4 -4 -4 -4 -4 -4 -3 -3 -3 -2 -2 -1 ------- Run | Yrd Mat Min Mat Sto Rec Scr Fac Ext Cet Arc Hub Fac Upp Upp War Pro Fac Was Fac Upp Upp Zhi Pro Res Tes Res Qua Acc Traps Triggered 18 | . 1 1 3 1 . . 1 2 . . 1 . . . . . 2 . 1 . . . . 1 . 4 . . Indirectly . | . . . . . . . . . . . . . . . . . . . . . . . . . . . . . Trap Hack Attempts 94 | . . . 11 83 . . . . . . . . . . . . . . . . . . . . . . . . Triggered . | . . . . . . . . . . . . . . . . . . . . . . . . . . . . . Disarmed . | . . . . . . . . . . . . . . . . . . . . . . . . . . . . . Reprogrammed 13 | . . . 1 6 . . . . . . . 6 . . . . . . . . . . . . . . . . Reused 4 | . . . 1 2 . . . . . . . 1 . . . . . . . . . . . . . . . . Traps Extracted . | . . . . . . . . . . . . . . . . . . . . . . . . . . . . . Installed . | . . . . . . . . . . . . . . . . . . . . . . . . . . . . . Triggered 13 | . . . 1 2 . . . . . . 1 1 . . 8 . . . . . . . . . . . . . Machines | -11 -10 -10 -9 -9 -9 -9 -6 -6 -6 -6 -6 -5 -5 -5 -5 -4 -4 -4 -4 -4 -4 -4 -3 -3 -3 -2 -2 -1 ---------- Run | Yrd Mat Min Mat Sto Rec Scr Fac Ext Cet Arc Hub Fac Upp Upp War Pro Fac Was Fac Upp Upp Zhi Pro Res Tes Res Qua Acc Machines Disabled 90 | . 1 . 1 2 . . 9 2 . 3 15 8 1 . 1 . 6 . 9 2 . . . 1 20 5 3 1 Max in Single Turn 11 | . 1 . 1 1 . . . . . 1 11 4 1 . 1 . 3 . 4 1 . . . 1 3 1 1 1 Garrison Access 1 | . . . . . . . . . . . . . . . . . 1 . . . . . . . . . . . Network Hub 2 | . . . . . . . . . . . 2 . . . . . . . . . . . . . . . . . Energy Cycler 1 | . . . . . . . . 1 . . . . . . . . . . . . . . . . . . . . Machines Repaired . | . . . . . . . . . . . . . . . . . . . . . . . . . . . . . Machines Dismantled . | . . . . . . . . . . . . . . . . . . . . . . . . . . . . . Machines Sabotaged . | . . . . . . . . . . . . . . . . . . . . . . . . . . . . . Overloaded Fab Kills . | . . . . . . . . . . . . . . . . . . . . . . . . . . . . . Hacking | -11 -10 -10 -9 -9 -9 -9 -6 -6 -6 -6 -6 -5 -5 -5 -5 -4 -4 -4 -4 -4 -4 -4 -3 -3 -3 -2 -2 -1 --------- Run | Yrd Mat Min Mat Sto Rec Scr Fac Ext Cet Arc Hub Fac Upp Upp War Pro Fac Was Fac Upp Upp Zhi Pro Res Tes Res Qua Acc Machines Accessed 115 | . 10 1 13 11 11 2 8 4 . . 8 7 . 1 1 . 5 . 5 4 . 4 . 2 9 2 3 4 Terminals 72 | . 8 . 10 10 6 . 2 4 . . 7 4 . . . . 3 . 1 1 . . . 1 8 1 3 3 Fabricators 7 | . . . . . . . 2 . . . . 2 . . . . 1 . 1 . . . . . 1 . . . Repair Stations 8 | . 1 . 2 1 . . 1 . . . . . . . . . . . 1 . . . . 1 . 1 . . Recycling Units 13 | . 1 . 1 . 5 . 3 . . . . . . . . . . . 2 . . . . . . . . 1 Scanalyzers . | . . . . . . . . . . . . . . . . . . . . . . . . . . . . . Garrison Access 3 | . . . . . . . . . . . 1 1 . . . . 1 . . . . . . . . . . . Total Hacks 381 | . 28 1 39 29 20 22 17 9 . . 26 45 . 1 1 . 22 . 14 16 . 17 . 6 40 7 10 11 Successful 206 | . 14 1 23 18 14 22 8 1 . . 8 20 . 1 1 . 7 . 5 16 . 17 . 3 13 4 4 6 Failed 174 | . 13 . 16 11 6 . 9 8 . . 18 25 . . . . 15 . 9 . . . . 3 27 3 6 5 Catastrophic 37 | . 2 . 3 4 . . 3 2 . . 2 4 . . . . 5 . 4 . . . . 3 3 . 1 1 Database Lockouts 1 | . 1 . . . . . . . . . . . . . . . . . . . . . . . . . . . Manual 152 | . 21 . 21 9 18 . 9 5 1 . 14 18 . . . . 7 . 11 . . . . 3 11 . . 4 Terminals 252 | . 23 . 33 27 13 . 6 9 . . 23 31 . . . . 15 . 6 8 . . . 4 30 4 10 10 Fabricators 30 | . . . . . . . 4 . . . . 10 . . . . 4 . 2 . . . . . 10 . . . Repair Stations 19 | . 3 . 5 2 . . 3 . . . . . . . . . . . 1 . . . . 2 . 3 . . Recycling Units 20 | . 2 . 1 . 7 . 4 . . . . . . . . . . . 5 . . . . . . . . 1 Scanalyzers . | . . . . . . . . . . . . . . . . . . . . . . . . . . . . . Garrison Access 10 | . . . . . . . . . . . 3 4 . . . . 3 . . . . . . . . . . . Terminal Hacks 126 | . 5 1 10 10 2 22 1 . . . 7 10 . 1 1 . 2 . 1 16 . 17 . 1 10 2 4 3 Record 41 | . . . . . . 22 . . . . . . . . . . . . . 14 . 5 . . . . . . Part Schematic 5 | . . . . . . . . . . . . . . . . . . . . . . 4 . . 1 . . . Robot Schematic 1 | . 1 . . . . . . . . . . . . . . . . . . . . . . . . . . . Robot Analysis 8 | . 1 . 2 . . . . . . . . . . . . . . . . . . 4 . . . . 1 . Prototype ID Bank 12 | . 2 . 2 3 1 . . . . . . . . . . . . . . . . 4 . . . . . . Open Door 10 | . . 1 . 2 . . . . . . . . . 1 1 . . . . 2 . . . . 1 . 1 1 Level Access Points 1 | . . . . . . . . . . . . . . . . . . . . . . . . . . . . 1 Branch Access Points 3 | . . . . . . . 1 . . . . . . . . . . . 1 . . . . 1 . . . . Machine Index 2 | . . . . . . . . . . . 1 . . . . . . . . . . . . . . 1 . . Terminal Index 4 | . . . . . . . . . . . . 1 . . . . 1 . . . . . . . 1 . . 1 Fabricator Index 1 | . . . . . . . . . . . . 1 . . . . . . . . . . . . . . . . Alert Level 8 | . . . 1 1 . . . . . . 1 1 . . . . . . . . . . . . 1 1 2 . Unreport Threat 14 | . . . 2 2 . . . . . . 4 4 . . . . 1 . . . . . . . 1 . . . Locate Traps 8 | . 1 . 2 2 . . . . . . . 1 . . . . . . . . . . . . 2 . . . Reprogram Traps 1 | . . . . . . . . . . . . 1 . . . . . . . . . . . . . . . . Patrol Status 1 | . . . . . . . . . . . . . . . . . . . . . . . . . 1 . . . Recall Reinforcements 1 | . . . . . . . . . . . 1 . . . . . . . . . . . . . . . . . Hauler Manifests 2 | . . . 1 . . . . . . . . 1 . . . . . . . . . . . . . . . . Zone Layout 2 | . . . . . 1 . . . . . . . . . . . . . . . . . . . 1 . . . Protovariant Controls 1 | . . . . . . . . . . . . . . . . . . . . . . . . . 1 . . . Fabricator Hacks 10 | . . . . . . . 1 . . . . 4 . . . . 2 . 2 . . . . . 1 . . . Network Status 1 | . . . . . . . 1 . . . . . . . . . . . . . . . . . . . . . Load Schematic 4 | . . . . . . . . . . . . 2 . . . . 1 . 1 . . . . . . . . . Build 5 | . . . . . . . . . . . . 2 . . . . 1 . 1 . . . . . 1 . . . Repair Station Hacks 13 | . 2 . 4 2 . . 2 . . . . . . . . . . . . . . . . 1 . 2 . . Scan Component 6 | . 1 . 2 1 . . 1 . . . . . . . . . . . . . . . . . . 1 . . Repair 6 | . 1 . 2 1 . . 1 . . . . . . . . . . . . . . . . . . 1 . . Refit 1 | . . . . . . . . . . . . . . . . . . . . . . . . 1 . . . . Recycling Unit Hacks . | . . . . . . . . . . . . . . . . . . . . . . . . . . . . . Scanalyzer . | . . . . . . . . . . . . . . . . . . . . . . . . . . . . . Garrison Access Hacks 1 | . . . . . . . . . . . . . . . . . 1 . . . . . . . . . . . Seal Access 1 | . . . . . . . . . . . . . . . . . 1 . . . . . . . . . . . Unauthorized Hacks 56 | . 7 . 9 6 12 . 4 1 . . 1 6 . . . . 2 . 2 . . . . 1 2 . . 3 Terminals 38 | . 6 . 8 6 7 . 1 1 . . 1 3 . . . . 1 . . . . . . 1 1 . . 2 Track 1 | . . . . . . . . . . . . . . . . . . . . . . . . . . . . 1 Assimilate 1 | . . . . . . . . . . . . 1 . . . . . . . . . . . . . . . . Botnet 14 | . 1 . 3 1 2 . 1 1 . . 1 1 . . . . 1 . . . . . . 1 1 . . . Disrupt 1 | . . . . . . . . . . . . . . . . . . . . . . . . . . . . 1 Operators 1 | . . . . . . . . . . . . 1 . . . . . . . . . . . . . . . . Skim 20 | . 5 . 5 5 5 . . . . . . . . . . . . . . . . . . . . . . . Fabricators 6 | . . . . . . . 1 . . . . 3 . . . . 1 . . . . . . . 1 . . . Prioritize 3 | . . . . . . . . . . . . 2 . . . . 1 . . . . . . . . . . . Liberate 1 | . . . . . . . . . . . . . . . . . . . . . . . . . 1 . . . Haulers 2 | . . . . . . . 1 . . . . 1 . . . . . . . . . . . . . . . . Repair Stations 5 | . . . . . . . 2 . . . . . . . . . . . 2 . . . . . . . . 1 Patch 1 | . . . . . . . . . . . . . . . . . . . 1 . . . . . . . . . Recycling Units 7 | . 1 . 1 . 5 . . . . . . . . . . . . . . . . . . . . . . . Tunnel 7 | . 1 . 1 . 5 . . . . . . . . . . . . . . . . . . . . . . . Scrapoids 4 | . . . . . . . 2 . . . . . . . . . . . 1 . . . . . . . . 1 Scanalyzers . | . . . . . . . . . . . . . . . . . . . . . . . . . . . . . Garrison Access . | . . . . . . . . . . . . . . . . . . . . . . . . . . . . . Data Cores Recovered 4 | . . . 1 . . . . . . . 1 1 . . . . . . . . . . . . . . . 1 Used 1 | . . . . . . . . . . . . 1 . . . . . . . . . . . . . . . . Hacking Detections 79 | . 9 . 10 9 3 . 5 4 1 . 8 6 . . . . 5 . 3 1 . . . 2 7 2 1 3 Full Trace Events 16 | . . . 1 2 . . 3 1 . . 2 3 . . . . 2 . 2 . . . . . . . . . Feedback Events . | . . . . . . . . . . . . . . . . . . . . . . . . . . . . . Feedback Blocked . | . . . . . . . . . . . . . . . . . . . . . . . . . . . . . Robot Schematics Acquired 2 | . 1 . . . . . . . . . . . . . . . . . . . . . . . 1 . . . Robots Built 4 | . . . . . . . . . . . . 2 . . . . 1 . 1 . . . . . . . . . Authchips . | . . . . . . . . . . . . . . . . . . . . . . . . . . . . . Time 160 | . . . . . . . . . . . . 80 . . . . 40 . 40 . . . . . . . . . Total Robot Build Rating 4 | . . . . . . . . . . . . 2 . . . . 1 . 1 . . . . . . . . . Part Schematics Acquired 11 | . . . . . . . . . . . . . . . . . . . . . . 4 . . 7 . . . Parts Built 2 | . . . . . . . . . . . . . . . . . . . . . . . . . 2 . . . Authchips . | . . . . . . . . . . . . . . . . . . . . . . . . . . . . . Time 46 | . . . . . . . . . . . . . . . . . . . . . . . . . 46 . . . Total Part Build Rating 18 | . . . . . . . . . . . . . . . . . . . . . . . . . 18 . . . Parts Repaired 6 | . 1 . 2 1 . . 1 . . . . . . . . . . . . . . . . . . 1 . . Time 242 | . 38 . 64 16 . . 25 . . . . . . . . . . . . . . . . . . 99 . . Parts Recycled . | . . . . . . . . . . . . . . . . . . . . . . . . . . . . . Recycled Matter . | . . . . . . . . . . . . . . . . . . . . . . . . . . . . . Retrieved Matter . | . . . . . . . . . . . . . . . . . . . . . . . . . . . . . Retrieved Components . | . . . . . . . . . . . . . . . . . . . . . . . . . . . . . Parts Scanalyzed . | . . . . . . . . . . . . . . . . . . . . . . . . . . . . . Part Schematics Acquired . | . . . . . . . . . . . . . . . . . . . . . . . . . . . . . Parts Damaged . | . . . . . . . . . . . . . . . . . . . . . . . . . . . . . Bothacking | -11 -10 -10 -9 -9 -9 -9 -6 -6 -6 -6 -6 -5 -5 -5 -5 -4 -4 -4 -4 -4 -4 -4 -3 -3 -3 -2 -2 -1 ------------ Run | Yrd Mat Min Mat Sto Rec Scr Fac Ext Cet Arc Hub Fac Upp Upp War Pro Fac Was Fac Upp Upp Zhi Pro Res Tes Res Qua Acc Used RIF Installer . | . . . . . . . . . . . . . . . . . . . . . . . . . . . . . Robots Hacked . | . . . . . . . . . . . . . . . . . . . . . . . . . . . . . Non-combat . | . . . . . . . . . . . . . . . . . . . . . . . . . . . . . Combat . | . . . . . . . . . . . . . . . . . . . . . . . . . . . . . Robot Hacks Applied . | . . . . . . . . . . . . . . . . . . . . . . . . . . . . . Relay Couplers Released . | . . . . . . . . . . . . . . . . . . . . . . . . . . . . . Fabnet Peak Effective % . | . . . . . . . . . . . . . . . . . . . . . . . . . . . . . Robots Rewired 18 | . . . . . 5 . . 10 . . . . 1 . . 1 . . . 1 . . . . . . . . Allies Hacked 2 | . . . . . . . . . . . . . . . . . . . . . . . . . . 2 . . Hacks Repelled . | . . . . . . . . . . . . . . . . . . . . . . . . . . . . . Allies | -11 -10 -10 -9 -9 -9 -9 -6 -6 -6 -6 -6 -5 -5 -5 -5 -4 -4 -4 -4 -4 -4 -4 -3 -3 -3 -2 -2 -1 -------- Run | Yrd Mat Min Mat Sto Rec Scr Fac Ext Cet Arc Hub Fac Upp Upp War Pro Fac Was Fac Upp Upp Zhi Pro Res Tes Res Qua Acc Total Allies 64 | . . . . 10 5 . 10 13 5 . . 3 1 . . 1 1 . 6 1 . . . . . 3 . 5 Largest Group 14 | . . . . 10 14 14 13 8 7 5 4 2 2 1 1 1 1 . 5 . . . . . . 3 . 5 Highest-Rated Group 480 | . . . . 88 183 183 156 347 480 480 384 24 38 9 12 47 47 . 235 . . . . . . 138 . 320 Highest-Rated Ally 159 | . . . . 16 34 34 34 159 144 96 96 14 29 9 12 47 47 . 47 . . . . . . 46 . 64 Total Orders 29 | . . . . . . 2 . . . 2 2 6 . . 6 . 3 . 3 . . . 5 . . . . . STAY 6 | . . . . . . 1 . . . 1 2 2 . . . . . . . . . . . . . . . . FOLLOW 4 | . . . . . . 1 . . . 1 . 2 . . . . . . . . . . . . . . . . AID 4 | . . . . . . . . . . . . 2 . . . . 1 . 1 . . . . . . . . . EXPLORE 11 | . . . . . . . . . . . . . . . 3 . 2 . 2 . . . 4 . . . . . RETURN 4 | . . . . . . . . . . . . . . . 3 . . . . . . . 1 . . . . . Ally Attacks 522 | . . . . 7 19 . 138 86 29 17 68 . 3 . . . 8 . 39 . . . . . . 11 . 97 Total Damage 11715 | . . . . 74 161 . 2205 1546 743 614 3023 . 39 . . . 157 . 892 . . . . . . 178 . 2083 Kills 81 | . . . . 3 3 . 14 11 2 3 24 . 2 . . . 1 . 4 . . . . . . . . 14 Allies Corrupted 2 | . . . . . . . . . . . 1 . . . . . . . . . . . . . . 1 . . Allies Melted 1 | . . . . . . . . . . . . . . . . . . . 1 . . . . . . . . . Intel | -11 -10 -10 -9 -9 -9 -9 -6 -6 -6 -6 -6 -5 -5 -5 -5 -4 -4 -4 -4 -4 -4 -4 -3 -3 -3 -2 -2 -1 ------- Run | Yrd Mat Min Mat Sto Rec Scr Fac Ext Cet Arc Hub Fac Upp Upp War Pro Fac Was Fac Upp Upp Zhi Pro Res Tes Res Qua Acc Robot Analysis Total 8 | . 1 . 2 . . . . . . . . . . . . . . . . . . 4 . . . . 1 . Derelict Logs Recovered 4 | . . 1 . . . . . . . . . . 1 . . 1 . . . 1 . . . . . . . . Drone Launches 11 | . . . . . . . . . . . . . . . 3 . 2 . 2 . . . 4 . . . . . Drone Recoveries 7 | . . . . . . . . . . . . . . . 3 . 1 . 1 . . . 2 . . . . . Exploration | -11 -10 -10 -9 -9 -9 -9 -6 -6 -6 -6 -6 -5 -5 -5 -5 -4 -4 -4 -4 -4 -4 -4 -3 -3 -3 -2 -2 -1 ------------- Run | Yrd Mat Min Mat Sto Rec Scr Fac Ext Cet Arc Hub Fac Upp Upp War Pro Fac Was Fac Upp Upp Zhi Pro Res Tes Res Qua Acc Turns Passed 38120 | 130 1630 439 2345 1766 1021 2417 2317 1713 467 1227 2335 1019 1162 888 873 1775 1500 731 1533 939 753 191 1169 1121 3202 2027 709 721 Spaces Moved 17383 | 76 787 383 993 789 580 1478 800 843 206 163 800 456 639 450 387 796 457 128 500 623 532 147 680 644 1033 924 493 596 Core 812 | 2 . . . . . 129 . . . . . . . . . . . . . . . . . . . 357 197 127 Treads 10676 | 74 591 . 819 789 580 1349 800 51 159 163 800 456 639 450 387 796 457 128 287 . . . . 84 717 1 93 6 Legs 968 | . 105 . . . . . . . . . . . . . . . . . . . . . . . 297 566 . . Wheels 4598 | . 91 383 174 . . . . 792 47 . . . . . . . . . 213 623 532 147 680 560 19 . . 337 Hover 214 | . . . . . . . . . . . . . . . . . . . . . . . . . . . 203 11 Flight 115 | . . . . . . . . . . . . . . . . . . . . . . . . . . . . 115 Fastest Speed 45 | 50 95 95 95 160 160 50 240 120 130 160 160 160 160 160 160 160 160 230 130 140 140 120 120 80 152 50 50 45 Average Speed 161 | 157 157 95 152 161 160 159 240 142 159 160 160 160 162 183 185 195 217 236 197 140 140 120 136 117 225 131 94 99 Slowest Speed 465 | 160 330 95 240 240 160 240 240 250 240 160 160 160 240 240 240 320 240 240 240 140 140 140 140 240 465 300 240 200 Overloaded Moves . | . . . . . . . . . . . . . . . . . . . . . . . . . . . . . Propulsion Burnouts . | . . . . . . . . . . . . . . . . . . . . . . . . . . . . . Robots Hopped 7 | . . . . . . . . . . . . . . . . . . . 2 . . . . . . . . 5 Cave-ins Triggered . | . . . . . . . . . . . . . . . . . . . . . . . . . . . . . Teleports 2 | . . . . . . . . . . . . . . . . . . . . . . . . . 1 . 1 . Exploration Rate (%) 63 | 6 98 66 93 96 97 87 29 62 56 83 65 16 83 63 96 91 19 93 17 82 76 63 87 24 92 31 68 16 Regions Visited 28 Branch Regions 18 Pre-discovered Areas 19 | . 1 . 3 . 7 3 . . . . . . 1 . . 1 . . . . . 3 . . . . . . Known Exits Taken 11 | . . 1 1 1 . . 1 . . . 1 1 . 1 . . . . 1 . . . 1 1 1 . . . Unknown Exits Taken 15 | 1 1 . . . 1 1 . 1 1 1 . . 1 . 1 1 . . . 1 1 1 . . . 1 1 . Scrap Searched 20 | . . 1 . . . 2 . . . . . . 2 2 . 2 . . . 4 3 . 4 . . . . . Spaces Dug 73 | . 13 . . 3 . . 3 2 . . . 1 . . 4 . . . . 7 . . 7 5 1 5 17 5 Terrain Destroyed 1154 | . 13 . . 15 . . 32 60 1 4 165 83 8 11 29 52 130 24 125 44 . . 73 14 135 80 17 39 Melee 30 | . 3 . . 3 . . 2 . . . . . . . . . . . . . . . . . . . 17 5 Projectile 659 | . . . . . . . 1 12 1 4 14 59 8 11 10 52 109 24 95 16 . . 45 14 133 49 . 2 AOE 440 | . 10 . . 12 . . 29 46 . . 151 24 . . 19 . 19 . 30 28 . . 28 . . 12 . 32 Terrain Rammed . | . . . . . . . . . . . . . . . . . . . . . . . . . . . . . Walls Destroyed . | . . . . . . . . . . . . . . . . . . . . . . . . . . . . . Machines Disabled . | . . . . . . . . . . . . . . . . . . . . . . . . . . . . . Actions | -11 -10 -10 -9 -9 -9 -9 -6 -6 -6 -6 -6 -5 -5 -5 -5 -4 -4 -4 -4 -4 -4 -4 -3 -3 -3 -2 -2 -1 --------- Run | Yrd Mat Min Mat Sto Rec Scr Fac Ext Cet Arc Hub Fac Upp Upp War Pro Fac Was Fac Upp Upp Zhi Pro Res Tes Res Qua Acc Total 24455 | 83 1032 417 1550 1082 660 1537 1038 1229 307 1062 1674 602 729 484 503 935 791 499 802 650 540 161 808 995 1585 1414 621 665 Wait 3962 | . 125 8 335 37 31 25 81 119 18 857 775 66 53 19 60 71 187 316 132 6 . . 60 251 230 72 20 8 Move 17344 | 75 786 382 992 788 579 1477 799 842 205 162 799 455 638 449 386 795 457 127 495 622 531 146 679 644 1032 923 492 587 Hop 5 | . . . . . . . . . . . . . . . . . . . 2 . . . . . . . . 3 Pick Up 218 | 1 14 3 9 10 . 21 14 9 15 1 1 2 1 1 4 3 17 7 17 2 3 2 1 16 23 18 3 . Fast Attach 216 | 6 6 . 15 2 . 5 4 10 8 3 4 4 . . 2 4 2 1 15 1 1 6 2 16 36 23 19 21 Attach 140 | . 2 . 3 1 . . 10 12 4 1 1 3 . 1 2 8 14 1 8 1 . . 13 7 12 29 5 2 Detach 58 | . 1 . . . . . 3 2 2 3 2 2 . . 3 . . . 1 . . . 1 10 8 11 4 5 Swap 291 | . 11 3 19 26 1 2 17 20 9 1 8 11 5 2 19 5 17 5 30 2 1 . 6 10 28 33 . . Drop 283 | . 6 1 26 22 . 7 11 11 24 3 4 3 . . 4 . . 7 17 3 3 7 1 24 49 27 12 11 Fire 1510 | . 65 20 139 98 4 . 85 82 22 31 79 56 12 12 23 46 93 35 81 13 . . 44 17 149 271 16 17 Melee 83 | . 10 . . 7 2 . 5 . . . . . . . . . . . . . . . . . . . 48 11 Ram 3 | . . . . . . . . . . . . . . . . . . . 1 . 1 . . . . . 1 . Kick 11 | . . . . . . . . . . . . . . . . . . . . . . . . . 4 7 . . Crush 43 | 1 6 . 1 8 3 . 9 . . . 1 . . . . . 3 . 2 . . . . . 8 . 1 . Escape Stasis 14 | . . . . . . . . 8 . . . . . . . . . . . . . . . . 6 . . . Rewire 180 | . . . . . 40 . . 114 . . . . 20 . . 3 1 . 1 . . . 1 . . . . . Trap 94 | . . . 11 83 . . . . . . . . . . . . . . . . . . . . . . . . Miscellaneous . | . . . . . . . . . . . . . . . . . . . . . . . . . . . . . Route ------- -11/Scrapyard -10/Materials (discovered 4 exits: *Mat x3 / *Min) -10/Mines (discovered 4 exits: *Mat x2 / Exi / Sub) -9/Materials (discovered 7 exits: *Mat x3 / *Min x2 / *Sto x2) -9/Storage (discovered 2 exits: *Mat / *Rec) -9/Recycling (discovered 2 exits: *Fac / *Scr) -9/Scraptown (discovered 2 exits: *Fac x2) -6/Factory (discovered 6 exits: *Fac x2 / Low x2 / *Ext x2) -6/Extension (discovered 2 exits: *Fac / *Cet) -6/Cetus (discovered 2 exits: *Fac / [*Arc]) -6/Archives (discovered 3 exits: *Fac / *Hub x2) -6/Hub_04(d) (discovered 3 exits: *Fac x3) -5/Factory (discovered 3 exits: *Fac / *Upp x2) -5/Upper Caves -5/Upper Caves (discovered 2 exits: *Fac / *War) -5/Warlord -4/Proximity Caves -4/Factory (discovered 5 exits: Res x4 / *Upp) -4/Waste -4/Factory (discovered 5 exits: *Res x3 / *Upp x2) -4/Upper Caves -4/Upper Caves (discovered 2 exits: Res / *Zhi) -4/Zhirov -3/Proximity Caves -3/Research (discovered 5 exits: *Res x2 / Arm / *Tes x2) -3/Testing -2/Research -2/Quarantine -1/Access Tau Ceti IV Orbit History --------- Turn | Location | Event 36 | -11/Scrapyard | Discovered new exit (range 15) 131 | -11/Scrapyard | Entered Materials 325 | -10/Materials | Build established: Mutant 330 | -10/Materials | Discovered new exit (range 6) 664 | -10/Materials | Discovered new exit (range 15) 814 | -10/Materials | Identified exit to Materials 859 | -10/Materials | Learned Storage emergency access door positions 917 | -10/Materials | Learned location of 2 exits from Subcaves 931 | -10/Materials | Learned location of 1 exit from Storage 956 | -10/Materials | Learned Storage emergency access door positions 991 | -10/Materials | Learned Storage stockpile data 1298 | -10/Materials | Central database locked down 1331 | -10/Materials | Derelicts attacked the area 1389 | -10/Materials | Lost 3 parts (1n1u1w) 1733 | -10/Materials | Repaired Lgt. Nuclear Core 1761 | -10/Materials | Entered Mines 1762 | -10/Mines | Identified exit to Subcaves 1798 | -10/Mines | Discovered exit to Materials (range 16) 1817 | -10/Mines | Met a Derelict who couldn't figure out how to use a Trap Extractor 1842 | -10/Mines | Core integrity fell below 50% 2104 | -10/Mines | Deemed a non-threat by the Exiles lab entrance 2169 | -10/Mines | Identified exit to Exiles 2200 | -10/Mines | Entered Materials 2200 | -9/Materials | Evolved 2 slots: Propulsion x1, Utility x1 2327 | -9/Materials | Discovered new exit (range 12) 2380 | -9/Materials | Repaired Hvy. Assault Rifle 2767 | -9/Materials | Build established: Scavenger-Mutant 2772 | -9/Materials | Discovered new exit (range 7) 3210 | -9/Materials | Discovered new exit (range 9) 3387 | -9/Materials | Learned Storage emergency access door positions 3408 | -9/Materials | Discovered new exit (range 5) 3477 | -9/Materials | Learned location of 1 exit from Storage 3507 | -9/Materials | Learned location of Zion (-6) 3529 | -9/Materials | Learned location of 1 exit from Recycling 3539 | -9/Materials | Identified exit to Mines 3587 | -9/Materials | Identified exit to Storage 3587 | -9/Materials | Identified exit to Materials 3859 | -9/Materials | Repaired Med. Armor Plating 4545 | -9/Materials | Entered Storage 4546 | -9/Storage | Identified exit to Recycling 5254 | -9/Storage | Destroyed 8 combat bots 5408 | -9/Storage | Repaired Shield Generator 5601 | -9/Storage | Build established: Mutant 5727 | -9/Storage | Core integrity fell below 50% 5792 | -9/Storage | Learned 2 Materials zone layouts 5902 | -9/Storage | Learned Materials security intel 5968 | -9/Storage | Learned Materials emergency access door positions 6099 | -9/Storage | Assisted by bots powering up and referring to "LRC-V3" 6107 | -9/Storage | Learned Materials garrison access intel 6291 | -9/Storage | Used back door to open Recycling access 6311 | -9/Storage | Entered Recycling 6311 | -9/Recycling | Accompanied by 10 allies 6312 | -9/Recycling | Identified exit to Factory 6397 | -9/Recycling | Build established: Commander-Mutant 7123 | -9/Recycling | Learned Storage emergency access door positions 7225 | -9/Recycling | Learned Materials emergency access door positions 7260 | -9/Recycling | Scanned before Scraplab entrance 7268 | -9/Recycling | Learned 4 Materials zone layouts 7284 | -9/Recycling | Entered Scraplab 7299 | -9/Recycling | Discovered new exit (range 3) 7302 | -9/Recycling | Learned location of 1 exit from Storage 7332 | -9/Recycling | Entered Scraptown 7332 | -9/Scraptown | Accompanied by 14 allies 7464 | -9/Scraptown | Heard Great Nut preacher, LISTEN AND RECITE! 7484 | -9/Scraptown | Visited Symbiants 7516 | -9/Scraptown | Visited SPCMW 7552 | -9/Scraptown | Visited Spacefarers 7592 | -9/Scraptown | Visited CR-KLE's Repair Center 7662 | -9/Scraptown | Discovered new exit (range 11) 8081 | -9/Scraptown | Visited UFD Registry 8092 | -9/Scraptown | Visited TADAMA 8118 | -9/Scraptown | Registered with UFD as "Longranger" 8179 | -9/Scraptown | Visited Curators Association 8254 | -9/Scraptown | Visited Science Guys 8302 | -9/Scraptown | Visited Scrap Suit Storage 8419 | -9/Scraptown | Visited Scrapoid Research Area 8454 | -9/Scraptown | Visited Cartography Club 8480 | -9/Scraptown | Visited Chapter 10 8510 | -9/Scraptown | Visited Junk Cannon Lab 8555 | -9/Scraptown | Visited Abandonware Association 8574 | -9/Scraptown | Learned abandonware demo "REVENGE.EXE" 8574 | -9/Scraptown | Learned abandonware demo "TRNCOAT.EXE" 8873 | -9/Scraptown | Visited Infowarlord's Domain 8886 | -9/Scraptown | Found Spectral Analyzer 9096 | -9/Scraptown | Learned location of Proximity Caves (-4) 9096 | -9/Scraptown | Learned 12 Materials zone layouts 9096 | -9/Scraptown | Learned 16 Factory zone layouts 9096 | -9/Scraptown | Learned 4 Access zone layouts 9096 | -9/Scraptown | Learned 4 Mines zone layouts 9096 | -9/Scraptown | Learned 16 Upper Caves zone layouts 9096 | -9/Scraptown | Learned Storage emergency access door positions 9096 | -9/Scraptown | Learned 20 Upper Caves zone layouts 9096 | -9/Scraptown | Learned location of 2 exits from Factory 9096 | -9/Scraptown | Learned location of 2 exits from Lower Caves 9096 | -9/Scraptown | Learned location of 2 exits from Research 9112 | -9/Scraptown | Found Deep Structural Scanner 9341 | -9/Scraptown | Found Scrap Suit 9723 | -9/Scraptown | Discovered new exit (range 3) 9749 | -9/Scraptown | Entered Factory 9749 | -6/Factory | Accompanied by 13 allies 9749 | -6/Factory | Evolved 6 slots: Power x1, Propulsion x1, Utility x3, Weapon x1 9750 | -6/Factory | Identified exit to Extension 9750 | -6/Factory | Identified exit to Factory 9751 | -6/Factory | Identified exit to Lower Caves 9835 | -6/Factory | Lost 3 allies 9889 | -6/Factory | Lost 4 allies 10046 | -6/Factory | Lost 3 allies 10233 | -6/Factory | Build established: Tank 10951 | -6/Factory | Scrapoid reinforcements arrived 11062 | -6/Factory | Lost 4 allies 11282 | -6/Factory | Repaired Imp. Heavy Armor Plating 11587 | -6/Factory | Discovered exit to Factory (range 13) 11788 | -6/Factory | Scrapoid reinforcements arrived 12066 | -6/Factory | Entered Extension 12066 | -6/Extension | Accompanied by 2 allies 12205 | -6/Extension | Found Scrap Suit 12465 | -6/Extension | Build established: Scavenger-Scrapper 12500 | -6/Extension | Energy Cycler disabled 12501 | -6/Extension | Rescued a captive Derelict 12501 | -6/Extension | Rescued a captive Derelict 12501 | -6/Extension | Rescued a captive Derelict 12502 | -6/Extension | Rescued a captive Derelict 12502 | -6/Extension | Rescued a captive Derelict 12503 | -6/Extension | Rescued a captive Derelict 12505 | -6/Extension | Rescued a captive Derelict 12506 | -6/Extension | Rescued a captive Derelict 12506 | -6/Extension | Rescued a captive Derelict 12507 | -6/Extension | Rescued a captive Derelict 12508 | -6/Extension | Rescued a captive Derelict 12512 | -6/Extension | Rescued A7 12546 | -6/Extension | Lost 12 parts (3p2n2u5w) 13042 | -6/Extension | Found Powered Armor 13326 | -6/Extension | Build established: Scavenger-Tank 13717 | -6/Extension | Discovered exit to Factory (range 10) 13718 | -6/Extension | Discovered new exit (range 6) 13779 | -6/Extension | Entered Cetus 13779 | -6/Cetus | Accompanied by 7 allies (A7) 13784 | -6/Cetus | Acquired a Cetus Manufacturing Module code from A7 13798 | -6/Cetus | Spotted Cetus Guard 13798 | -6/Cetus | Spotted Cetus Guard 13800 | -6/Cetus | Spotted Cetus Guard 13800 | -6/Cetus | Spotted Cetus Guard 13812 | -6/Cetus | Destroyed Cetus Guard 13815 | -6/Cetus | Core integrity fell below 50% 13834 | -6/Cetus | Allies destroyed Cetus Guard 13836 | -6/Cetus | Allies destroyed Cetus Guard 13839 | -6/Cetus | Lost 5 allies 13850 | -6/Cetus | Found Prototype Protection 13850 | -6/Cetus | Identified Med. Regenerative Plating 13852 | -6/Cetus | Extracted ID and sensor layout for unrecognized location from A7's data core 13863 | -6/Cetus | Lost 4 parts (1n3u) 14011 | -6/Cetus | Started Cetus Manufacturing Module 14030 | -6/Cetus | Discovered new exit (range 16) 14036 | -6/Cetus | Manufactured an Enhanced Grunt 14061 | -6/Cetus | Manufactured an Enhanced Grunt 14061 | -6/Cetus | Spotted Cetus Guard 14061 | -6/Cetus | Spotted Cetus Guard 14066 | -6/Cetus | Spotted Cetus Guard 14069 | -6/Cetus | Destroyed Cetus Guard 14082 | -6/Cetus | Destroyed Cetus Guard 14083 | -6/Cetus | Spotted Cetus Guard 14086 | -6/Cetus | Manufactured an Enhanced Grunt 14093 | -6/Cetus | Destroyed Cetus Guard 14096 | -6/Cetus | Destroyed Cetus Guard 14111 | -6/Cetus | Manufactured an Enhanced Grunt 14118 | -6/Cetus | Discovered exit to Factory (range 15) 14127 | -6/Cetus | Met Revision 17 14136 | -6/Cetus | Manufactured an Enhanced Grunt 14246 | -6/Cetus | Entered Archives 14246 | -6/Archives | Accompanied by 5 allies 14359 | -6/Archives | Discovered exit to Factory (range 13) 14386 | -6/Archives | Discovered new exit (range 13) 14460 | -6/Archives | Discovered new exit (range 14) 15473 | -6/Archives | Entered Hub_04(d) 15473 | -6/Hub_04(d) | Accompanied by 4 allies 15570 | -6/Hub_04(d) | Discovered exit to Factory (range 12) 15668 | -6/Hub_04(d) | Discovered exit to Factory (range 12) 15927 | -6/Hub_04(d) | Garrison activated, responded to threat 16140 | -6/Hub_04(d) | Build established: Scavenger-Gunner 16179 | -6/Hub_04(d) | Discovered exit to Factory (range 8) 16194 | -6/Hub_04(d) | Spotted B-75 Beast 16215 | -6/Hub_04(d) | Destroyed B-75 Beast 16816 | -6/Hub_04(d) | Network Hub disabled 16896 | -6/Hub_04(d) | Network Hub disabled 17312 | -6/Hub_04(d) | Spotted Lightning 17319 | -6/Hub_04(d) | Spotted Lightning 17328 | -6/Hub_04(d) | Spotted Lightning 17332 | -6/Hub_04(d) | Destroyed Lightning 17351 | -6/Hub_04(d) | Destroyed Lightning 17360 | -6/Hub_04(d) | System corruption reached 10% 17372 | -6/Hub_04(d) | Core integrity fell below 20% 17374 | -6/Hub_04(d) | Destroyed Lightning 17389 | -6/Hub_04(d) | Found Prototype Device 17389 | -6/Hub_04(d) | Identified Exp. EM Disruption Field 17402 | -6/Hub_04(d) | Found Prototype Processor 17402 | -6/Hub_04(d) | Identified Exp. Targeting Computer 17427 | -6/Hub_04(d) | Found Exp. Targeting Computer 17808 | -6/Hub_04(d) | Entered Factory 17808 | -5/Factory | Evolved 2 slots: Utility x1, Weapon x1 17809 | -5/Factory | Identified exit to Upper Caves 18027 | -5/Factory | Found Prototype Launcher 18027 | -5/Factory | Identified Tesla Bomb Launcher 18115 | -5/Factory | Fabricated M-13 Machinist (x1) 18134 | -5/Factory | Garrison activated, responded to threat 18165 | -5/Factory | Discovered new exit (range 15) 18444 | -5/Factory | Build established: Scavenger-Tank 18499 | -5/Factory | Fabricated M-13 Machinist (x1) 18827 | -5/Factory | Entered Upper Caves 18827 | -5/Upper Caves | Accompanied by 1 ally 19161 | -5/Upper Caves | Attracted the attention of an 0b10 outpost 19182 | -5/Upper Caves | Build established: Scavenger-Gunner 19692 | -5/Upper Caves | Discovered new exit (range 15) 19989 | -5/Upper Caves | Entered another Upper Caves area 19989 | -5/Upper Caves | Accompanied by 1 ally 19990 | -5/Upper Caves | Identified exit to Warlord 20037 | -5/Upper Caves | Discovered new exit (range 13) 20074 | -5/Upper Caves | Attracted the attention of an 0b10 checkpoint 20831 | -5/Upper Caves | Build established: Scavenger-Tank 20877 | -5/Upper Caves | Entered Warlord 20877 | -5/Warlord | Accompanied by 1 ally 21152 | -5/Warlord | Discovered new exit (range 90) 21187 | -5/Warlord | Build established: Scavenger-Gunner 21194 | -5/Warlord | Visited the Vortex Lab 21207 | -5/Warlord | Warlord's base attacked by MAIN.C 21207 | -5/Warlord | Found Prototype Energy Cannon 21207 | -5/Warlord | Identified Vortex Driver 21211 | -5/Warlord | Found Vortex Driver 21336 | -5/Warlord | Rebuked by Warlord 21367 | -5/Warlord | Found Prototype Reactor 21386 | -5/Warlord | Found Spectral Analyzer 21546 | -5/Warlord | Spotted B-86 Titan 21557 | -5/Warlord | Warlord forces counterattacked 21566 | -5/Warlord | Destroyed B-86 Titan 21644 | -5/Warlord | Lost 8 allies 21672 | -5/Warlord | Spotted Striker 21701 | -5/Warlord | Lost 3 allies 21711 | -5/Warlord | Spotted Striker 21711 | -5/Warlord | Spotted Striker 21716 | -5/Warlord | Destroyed Striker 21737 | -5/Warlord | Destroyed 12 combat bots 21750 | -5/Warlord | Entered Proximity Caves 21883 | -4/Proximity Caves | Attracted the attention of an 0b10 checkpoint 21942 | -4/Proximity Caves | Spotted B-86 Titan 21958 | -4/Proximity Caves | Destroyed B-86 Titan 23115 | -4/Proximity Caves | Attracted the attention of an 0b10 outpost 23147 | -4/Proximity Caves | Identified Vortex Chain Reactor 23207 | -4/Proximity Caves | Lost 5 parts (1p1n1u2w) 23453 | -4/Proximity Caves | Build established: Scavenger-Tank 23460 | -4/Proximity Caves | Discovered new exit (range 13) 23525 | -4/Proximity Caves | Entered Factory 23525 | -4/Factory | Accompanied by 1 ally 23525 | -4/Factory | Evolved 2 slots: Utility x2 23526 | -4/Factory | Identified exit to Research 23674 | -4/Factory | Found Imp. Powered Armor 24027 | -4/Factory | Discovered new exit (range 16) 24185 | -4/Factory | Spotted B-86 Titan 24286 | -4/Factory | Destroyed B-86 Titan 24422 | -4/Factory | Fabricated M-13 Machinist (x1) 24463 | -4/Factory | P-70 Sage assimilated allied Machinist 7a 24525 | -4/Factory | First assault squad dispatched 25025 | -4/Factory | Sucked down chute 25025 | -4/Factory | Entered Waste 25040 | -4/Waste | EMP discharged 25132 | -4/Waste | Spotted C-40 Crusher 25140 | -4/Waste | EMP discharged 25140 | -4/Waste | System corruption reached 10% 25141 | -4/Waste | Destroyed C-40 Crusher 25146 | -4/Waste | Spotted C-40 Crusher 25155 | -4/Waste | Spotted C-40 Crusher 25159 | -4/Waste | Destroyed C-40 Crusher 25208 | -4/Waste | Spotted C-40 Crusher 25219 | -4/Waste | Destroyed C-40 Crusher 25240 | -4/Waste | EMP discharged 25331 | -4/Waste | Destroyed C-40 Crusher 25340 | -4/Waste | EMP discharged 25440 | -4/Waste | EMP discharged 25517 | -4/Waste | Spotted C-40 Crusher 25540 | -4/Waste | EMP discharged 25554 | -4/Waste | Destroyed C-40 Crusher 25605 | -4/Waste | Spotted C-40 Crusher 25611 | -4/Waste | Destroyed C-40 Crusher 25640 | -4/Waste | EMP discharged 25735 | -4/Waste | Discovered new exit (range 10) 25740 | -4/Waste | EMP discharged 25756 | -4/Waste | Entered Factory 25982 | -4/Factory | Identified exit to Upper Caves 26130 | -4/Factory | Discovered exit to Research (range 4) 26500 | -4/Factory | Lost 4 parts (1p3u) 26506 | -4/Factory | First assault squad dispatched 26520 | -4/Factory | Destroyed 9 combat bots 26660 | -4/Factory | Found Quantum Capacitor 26812 | -4/Factory | Scrapoid reinforcements arrived 26856 | -4/Factory | Found Scrap Suit 26868 | -4/Factory | P-70 Sage assimilated allied 04F16-D 26871 | -4/Factory | P-70 Sage assimilated allied 04F12-D 27049 | -4/Factory | Fabricated M-13 Machinist (x1) 27289 | -4/Factory | Entered Upper Caves 27431 | -4/Upper Caves | Learned 4 Research zone layouts 27590 | -4/Upper Caves | Encountered a Warlord checkpoint 27835 | -4/Upper Caves | Learned 8 Research zone layouts 27835 | -4/Upper Caves | Learned Research stockpile data 27835 | -4/Upper Caves | Learned Extension stockpile data 27835 | -4/Upper Caves | Learned Research security intel 27835 | -4/Upper Caves | Learned Extension terminal intel 27919 | -4/Upper Caves | Build established: Scavenger-Gunner 28128 | -4/Upper Caves | Attracted the attention of an 0b10 base 28199 | -4/Upper Caves | Learned Armory trap positions 28199 | -4/Upper Caves | Learned Extension security intel 28199 | -4/Upper Caves | Learned Armory security intel 28209 | -4/Upper Caves | Discovered new exit (range 12) 28228 | -4/Upper Caves | Entered another Upper Caves area 28961 | -4/Upper Caves | Discovered new exit (range 14) 28981 | -4/Upper Caves | Entered Zhirov 28981 | -4/Zhirov | Discovered new exit (range 3) 29008 | -4/Zhirov | Met Zhirov 29034 | -4/Zhirov | Learned location of Quarantine (-2) 29051 | -4/Zhirov | Zhirov requested help retrieving the SGEMP Prototype 29070 | -4/Zhirov | Found Alien Artifact 29070 | -4/Zhirov | Identified Integrated Reactor 29070 | -4/Zhirov | Installed Integrated Reactor, increased core energy generation (+10) 29088 | -4/Zhirov | Found Alien Artifact 29172 | -4/Zhirov | Entered Proximity Caves 29174 | -3/Proximity Caves | Attracted the attention of an 0b10 checkpoint 29562 | -3/Proximity Caves | Core integrity fell below 50% 30102 | -3/Proximity Caves | Attracted the attention of an 0b10 outpost 30171 | -3/Proximity Caves | Core integrity fell below 20% 30205 | -3/Proximity Caves | Lost 13 parts (3p1n3u6w) 30294 | -3/Proximity Caves | Discovered exit to Research (range 10) 30341 | -3/Proximity Caves | Entered Research 30341 | -3/Research | Evolved 2 slots: Utility x2 30342 | -3/Research | Identified exit to Research 30342 | -3/Research | Identified exit to Armory 30362 | -3/Research | Discovered exit to Research (range 7) 30424 | -3/Research | Found Quantum Capacitor 30541 | -3/Research | Revision forces began assault on 0b10 30705 | -3/Research | Met up with Revision 17++ 30772 | -3/Research | Spotted B-86 Titan 30882 | -3/Research | Spotted B-86 Titan 30996 | -3/Research | Identified exit to Testing 31041 | -3/Research | Research terminal network offline 31462 | -3/Research | Entered Testing 31518 | -3/Testing | Fabricated Quantum Reactor (x2) 31711 | -3/Testing | Found Prototype Device 31711 | -3/Testing | Identified Exp. Thermal Defense Suite 31980 | -3/Testing | Spotted PG-M202HIMK7X 32135 | -3/Testing | Build established: Scavenger-Tank 32210 | -3/Testing | Found Prototype Protection 32210 | -3/Testing | Identified SHELL Armor 32245 | -3/Testing | Scanned by Researcher 32466 | -3/Testing | Spotted Striker 32466 | -3/Testing | Spotted Striker 32480 | -3/Testing | Destroyed Striker 32483 | -3/Testing | Spotted Alpha 7 32500 | -3/Testing | Destroyed Striker 32552 | -3/Testing | Destroyed Alpha 7 32576 | -3/Testing | Lost 4 parts (2u2w) 32664 | -3/Testing | Found Prototype Ballistic Gun 32665 | -3/Testing | Identified Multirail 32670 | -3/Testing | Found Prototype Device 32670 | -3/Testing | Identified Exp. ECM Suite 32715 | -3/Testing | Found Prototype Energy Cannon 32715 | -3/Testing | Identified Cld. Nova Cannon 32885 | -3/Testing | Build established: Scavenger-Gunner 32986 | -3/Testing | Stole the SGEMP Prototype 33068 | -3/Testing | System corruption reached 10% 33084 | -3/Testing | Found Prototype Processor 33084 | -3/Testing | Identified Exp. Armor Integrity Analyzer 33137 | -3/Testing | Found Prototype Hackware 33137 | -3/Testing | Identified Exp. System Shield 33340 | -3/Testing | Found Prototype Energy Cannon 33340 | -3/Testing | Identified Null Cannon 33460 | -3/Testing | Protovariant out of control (PL-TUN3Q0ZVP6) 33460 | -3/Testing | Unleashed a protovariant (PL-TUN3Q0ZVP6) 33460 | -3/Testing | Spotted PL-TUN3Q0ZVP6 33472 | -3/Testing | Spotted Investigator 33491 | -3/Testing | Identified Transdimensional Reconstructor 33491 | -3/Testing | Warped through subspace 33722 | -3/Testing | Destroyed PG-M202HIMK7X 33736 | -3/Testing | Found Exp. Targeting Computer 33751 | -3/Testing | Found Prototype Device 33751 | -3/Testing | Identified Exp. Weapon Cycler 34400 | -3/Testing | Destroyed 8 combat bots 34462 | -3/Testing | First assault squad dispatched 34475 | -3/Testing | Discovered exit to Research (range 17) 34536 | -3/Testing | Destroyed 7 combat bots 34542 | -3/Testing | Found Prototype Ballistic Gun 34542 | -3/Testing | Identified Hyp. Multirail 34664 | -3/Testing | Entered Research 34664 | -2/Research | Evolved 2 slots: Propulsion x2 34666 | -2/Research | Spotted B-90 Cyclops 34786 | -2/Research | Repaired Adv. KE Penetrator 34835 | -2/Research | Lost 3 parts (2u1w) 34914 | -2/Research | First assault squad dispatched 35043 | -2/Research | Lost 3 parts (1p1n1w) 35104 | -2/Research | Lost 3 parts (1p2u) 35141 | -2/Research | Destroyed 9 combat bots 35359 | -2/Research | Lost 3 parts (1p1u1w) 35422 | -2/Research | Found Multirail 35436 | -2/Research | Lost 4 parts (1p3w) 35596 | -2/Research | Lost 4 parts (1n2u1w) 35681 | -2/Research | Garrison activated, responded to threat 35683 | -2/Research | System corruption reached 10% 35956 | -2/Research | Spotted B-90 Cyclops 35968 | -2/Research | Destroyed B-90 Cyclops 36069 | -2/Research | Lost 4 parts (1p1u2w) 36316 | -2/Research | Build established: Scavenger-Mutant 36323 | -2/Research | Lost 5 parts (4p1w) 36351 | -2/Research | High security lockdown imminent 36382 | -2/Research | Destroyed 11 combat bots 36429 | -2/Research | System corruption reached 30% 36431 | -2/Research | High security lockdown engaged 36623 | -2/Research | Spotted Executioner 36641 | -2/Research | Core integrity fell below 50% 36669 | -2/Research | Allied Derelicts emerged from ambush trap array 36684 | -2/Research | Discovered new exit (range 16) 36691 | -2/Research | Entered Quarantine 36729 | -2/Quarantine | Found Alien Artifact 36729 | -2/Quarantine | Identified Core Reset Matrix 36729 | -2/Quarantine | Used Core Reset Matrix 36733 | -2/Quarantine | Detected hypermatrix surge 36733 | -2/Quarantine | Sensed 11 artifacts in vicinity 36750 | -2/Quarantine | Build established: Mutant 36762 | -2/Quarantine | Found Sigix Broadsword 36927 | -2/Quarantine | Cryocooling Duct disabled 36942 | -2/Quarantine | Ambient heat levels rising (+20) 36942 | -2/Quarantine | Non-combat units ordered to evacuate 36972 | -2/Quarantine | First assault squad dispatched 37113 | -2/Quarantine | Core integrity fell below 20% 37176 | -2/Quarantine | Lost 3 parts (1p1n1u) 37217 | -2/Quarantine | Found Hpw. Transdimensional Reconstructor 37217 | -2/Quarantine | Warped through subspace 37235 | -2/Quarantine | Found Prototype Launcher 37235 | -2/Quarantine | Identified Tactical Quantum Warhead 37263 | -2/Quarantine | Met incapacitated Sigix Warrior 37263 | -2/Quarantine | Lockdown squad dispatched 37274 | -2/Quarantine | Found Sigix Containment Pod 37386 | -2/Quarantine | Discovered new exit (range 12) 37400 | -2/Quarantine | Entered Access 37400 | -1/Access | Evolved 2 slots: Propulsion x2 37569 | -1/Access | Build established: Alien-Mutant 37653 | -1/Access | Scrapoid reinforcements arrived 37653 | -1/Access | Garrison activated, responded to threat 37684 | -1/Access | Found Unknown Device 37684 | -1/Access | Identified Scrap Suit 37695 | -1/Access | First assault squad dispatched 37892 | -1/Access | Lost 6 parts (3n2u1w) 37948 | -1/Access | System corruption reached 10% 38104 | -1/Access | Identified exit to Surface 38111 | -1/Access | Lost 6 parts (2n2u2w) 38121 | *** | Destroyed 0b10! Last Messages --------------- 38104_ Connecting with Terminal... >>Access(Main) Found 1 level access point to Surface: (55,169) Map updated. >>Index(Terminals) Found 21 terminals. Downloaded coordinate data. >>Trojan(Track) Trojan loaded successfully. Testing... Tracking enabled and active. >>Trojan(Disrupt) Trojan loaded successfully. Testing... Disruption routine running. 38118_ Connecting with Terminal... >>Open(Door) Sealed Barrier opened. 38119_ The Access Shell folds into the floor. Map ----- +----------------------------------------------------+ | ???????????????????????????????# #???# #????????? | | ?????????????????????????#######+##### #????????? | | ?????????????????????????# # #????????? | | ?????????????????????????# # #????????? | | ?????????????????????????# # #????????? | | ?????????????????????????# # #????????? | | ?????????????????????????# # #????????? | | ?????????????????????????# """ """ + #????????? | | ?????????????????????????# """T""" # #????????? | | ?????????????????????????############# #????????? | | ??????????????######################## ###+#####? | | ????????????? | | ????????????? w | | ????????????????????# ""############+###### | | ????????????????????# ""#?????????????????? | | ????????????????????# ""#?????????????????? | | ????????????????????# T#?????????????????? | | ????????????????????# ""#?????????????????? | | ????????????????????# ""#?????????????????? | | ???????????????????## ""##????????????????? | | ???????????????????# #????????????????? | | ???????????????????## ##????????????????? | | ????????????????????# #?????????????????? | | ????????????????????# #?????????????????? | | ????????????????????# #?????????????????? | | ????????????????????# @" #?????????????????? | | ????????????????????# "" #?????????????????? | | ????????????????????# #?????????????????? | | ????????????????????# #?????????????????? | | ????????????????????# #?????????????????? | | ????????????????????#""""""""""#?????????????????? | | ?????????????????????????????????????????????????? | | ?????????????????????????????????????????????????? | | ?????????????????????????????????????????????????? | | ?????????????????????????????????????????????????? | | ?????????????????????????????????????????????????? | | ?????????????????????????????????????????????????? | | ?????????????????????????????????????????????????? | | ?????????????????????????????????????????????????? | | ?????????????????????????????????????????????????? | | ?????????????????????????????????????????????????? | | ?????????????????????????????????????????????????? | | ?????????????????????????????????????????????????? | | ?????????????????????????????????????????????????? | | ?????????????????????????????????????????????????? | | ?????????????????????????????????????????????????? | | ?????????????????????????????????????????????????? | | ?????????????????????????????????????????????????? | | ?????????????????????????????????????????????????? | | ?????????????????????????????????????????????????? | +----------------------------------------------------+ Best States ------------- Heat Dissipation 188 Energy Generation 63 Energy Capacity 1010 Matter Stores 300 Matter Capacity 300 Sight Range 24 Robot Scan Range 16 Terrain Scan Range 20 Terrain Scan Density 10 ECM Strength 1 Additional Mass Support 16 Base Temperature (-) 200 Armor Coverage 2150 Resistance: KI 30 Resistance: EM 75 Propulsion Shielding 33 Point Defense Rating 240 Weapon Cycling 30 Phase Shifting 10 Evasion (%) 61 Targeting Accuracy 12 Recoil Reduction 8 Matter Filtering 50 Energy Filtering 50 Kinecelleration 40 Salvage Targeting 4 Offensive Hacking 66 Defensive Hacking 22 Item Schematics ----------------- None Robot Schematics ------------------ None Fabricated ------------ M-13 Machinist | x1 | -5/Factory M-13 Machinist | x1 | -5/Factory M-13 Machinist | x1 | -4/Factory M-13 Machinist | x1 | -4/Factory Quantum Reactor | x2 | -3/Testing | Preloaded Alien Tech Used ----------------- Integrated Reactor Transdimensional Reconstructor Core Reset Matrix Sigix Broadsword High-powered Transdimensional Reconstructor Achievements -------------- None Challenges ------------ None Game ------ Seed ElectrostormRemoteRigger Manual? 0 Play Time 03:52:39 Cumulative 663.2 hours Start 2025.03.27 @ 08:13:43 End 2025.03.28 @ 15:00:12 Sessions 13 Manual Loads 0 Difficulty Rogue Special Mode None Game No. 353 Rogue 353 Adventurer 0 Explorer 0 Win Type 3 Total 55 Types 37/4/5/2/1/1/3/1/1 Lore% 90 Gallery% 89 Achievement% 91 Wizard Run 0 Options --------- Layout 0 ASCII 0 Keyboard 1 Movement Numpad Keybinds 0 Fullscreen 2 Font 18/SmallcapsGlow Map View 76x50 Zoom Use 0% Tactical HUD 1 Map Filters NONE Filters NONE Steam 1 RUN: b1630952-1645-4cb1-aca1-9924e35a47df